bitfinex/quotes_BTCUSD_20241208
["timestamp","ask_amount","ask_price","bid_price","bid_amount"]
[1733637143713,0.0017322,99530.0,99529.0,0.80557588]
[1733637143929,0.0017322,99530.0,99529.0,0.1091959]
[1733637144093,0.0017322,99530.0,99529.0,0.2591959]
[1733637144298,0.0027322,99530.0,99529.0,0.2631959]
[1733637144967,0.0017322,99530.0,99529.0,0.2591959]
[1733637146373,0.0017322,99530.0,99529.0,0.2611959]
[1733637146786,0.0017322,99530.0,99529.0,0.2591959]
[1733637146959,0.0017322,99530.0,99529.0,0.2611959]
[1733637147376,0.0017322,99530.0,99529.0,0.2591959]
[1733637147531,0.0017322,99530.0,99529.0,0.2611959]
[1733637149532,0.0017322,99530.0,99529.0,0.2591959]
[1733637149887,0.0017322,99530.0,99529.0,0.2611959]
[1733637152155,0.0017322,99530.0,99529.0,0.1111959]
[1733637152384,0.0017322,99530.0,99529.0,0.01116639]
[1733637152579,0.0818322,99530.0,99529.0,0.01116639]
[1733637152785,0.21274893,99530.0,99529.0,0.01116639]
[1733637153022,0.25769295,99530.0,99529.0,0.002]
[1733637153193,0.25769295,99530.0,99520.0,0.0008661]
[1733637153194,0.05,99523.0,99520.0,0.0008661]
[1733637153410,0.140673,99521.0,99520.0,0.0008661]
[1733637155762,0.141673,99521.0,99520.0,0.0008661]
[1733637156284,0.140673,99521.0,99520.0,0.0018661]
[1733637159164,0.00125602,99522.0,99520.0,0.0018661]
[1733637159572,0.140673,99521.0,99520.0,0.0018661]
[1733637159962,0.140673,99521.0,99520.0,0.0008661]
[1733637160164,0.140673,99521.0,99520.0,0.0018661]
[1733637160565,0.140673,99521.0,99520.0,0.0008661]
[1733637161076,0.140673,99521.0,99520.0,0.0018661]
[1733637162273,0.00125602,99522.0,99520.0,0.0018661]
[1733637163092,0.00125602,99522.0,99520.0,0.0008661]
[1733637163550,0.140673,99521.0,99520.0,0.0018661]
[1733637165190,0.140673,99521.0,99520.0,0.0008661]
[1733637165748,0.140673,99521.0,99520.0,0.0018661]
[1733637166108,0.31206821,99521.0,99520.0,0.0018661]
[1733637166287,0.35731218,99521.0,99520.0,0.0018661]
[1733637167526,0.36031218,99521.0,99520.0,0.0018661]
[1733637168385,0.05,99511.0,99510.0,0.0013661]
[1733637168591,0.27756618,99511.0,99510.0,0.0013661]
[1733637170259,0.3243908,99511.0,99510.0,0.0013661]
[1733637171848,0.47282031,99511.0,99510.0,0.0013661]
[1733637172892,0.46782031,99511.0,99510.0,0.0013661]
[1733637173218,0.47882031,99511.0,99510.0,0.0013661]
[1733637173708,0.46782031,99511.0,99510.0,0.0013661]
[1733637173841,0.48617344,99511.0,99510.0,0.0013661]
[1733637174084,0.50601578,99511.0,99510.0,0.0013661]
[1733637175072,0.57901578,99511.0,99510.0,0.0013661]
[1733637175504,0.58401578,99511.0,99510.0,0.0013661]
[1733637175714,0.19448118,99501.0,99464.0,0.0487]
[1733637175922,0.19448118,99501.0,99463.0,0.0094594]
[1733637175923,0.48335479,99501.0,99463.0,0.0094594]
[1733637176189,0.48209811,99501.0,99463.0,0.0094594]
[1733637176804,0.48209811,99501.0,99459.0,0.15]
[1733637177010,0.48609811,99501.0,99458.0,0.2331]
[1733637177229,0.48909811,99501.0,99458.0,0.2331]
[1733637177644,0.43151069,99501.0,99469.0,0.140746]
[1733637177878,0.43151069,99501.0,99474.0,0.0831]
[1733637178288,0.43670582,99501.0,99474.0,0.0831]
[1733637178817,0.44270582,99501.0,99474.0,0.0831]
[1733637179255,0.44770582,99501.0,99474.0,0.0831]
[1733637179459,0.43870582,99501.0,99474.0,0.0831]
[1733637179664,0.43370582,99501.0,99474.0,0.0831]
[1733637179926,0.5197157,99501.0,99474.0,0.0831]
[1733637180109,0.5247157,99501.0,99474.0,0.0831]
[1733637180956,0.44770582,99501.0,99474.0,0.0831]
[1733637181602,0.44770582,99501.0,99474.0,0.223839]
[1733637182196,0.48793882,99501.0,99474.0,0.223839]
[1733637183184,0.48793882,99501.0,99500.0,0.0001671]
[1733637184284,0.38790931,99501.0,99500.0,0.0001671]
[1733637184941,0.33950931,99501.0,99500.0,0.0001671]
[1733637185407,0.40159954,99501.0,99500.0,0.0001671]
[1733637187023,0.50162905,99501.0,99500.0,0.0001671]
[1733637187590,0.54772905,99501.0,99500.0,0.0001671]
[1733637192336,0.19450918,99481.0,99461.0,0.0465]
[1733637192574,0.25143182,99481.0,99461.0,0.0465]
[1733637192803,0.19450918,99481.0,99461.0,0.0465]
[1733637193022,0.1957659,99481.0,99461.0,0.0465]
[1733637193895,0.19587551,99481.0,99461.0,0.0465]
[1733637194598,0.19887551,99481.0,99461.0,0.0465]
[1733637194809,0.19961879,99481.0,99461.0,0.0465]
[1733637195284,0.19961879,99481.0,99462.0,0.140756]
[1733637195520,0.19961879,99481.0,99461.0,0.0465]
[1733637196434,0.20871406,99481.0,99461.0,0.0465]
[1733637196864,0.22850992,99481.0,99461.0,0.0465]
[1733637197958,0.07868465,99481.0,99463.0,0.140755]
[1733637198390,0.07994133,99481.0,99463.0,0.140755]
[1733637198807,0.07694133,99481.0,99463.0,0.140755]
[1733637199055,0.07694133,99481.0,99461.0,0.0465]
[1733637199056,0.07494133,99481.0,99461.0,0.0465]
[1733637199274,0.07994133,99481.0,99463.0,0.140755]
[1733637199454,0.13015316,99481.0,99463.0,0.140755]
[1733637200360,0.12715316,99481.0,99463.0,0.140755]
[1733637200602,0.12515316,99481.0,99463.0,0.140755]
[1733637200820,0.12815316,99481.0,99463.0,0.140755]
[1733637201037,0.13015316,99481.0,99461.0,0.0465]
[1733637201255,0.07994133,99481.0,99461.0,0.0465]
[1733637202950,0.07994133,99481.0,99462.0,0.140755]
[1733637204761,0.07994133,99481.0,99466.0,0.14075]
[1733637204972,0.07694133,99481.0,99466.0,0.14075]
[1733637205179,0.07494133,99481.0,99466.0,0.14075]
[1733637205391,0.08694133,99481.0,99466.0,0.14075]
[1733637205667,0.07894133,99481.0,99466.0,0.14075]
[1733637206973,0.08594133,99481.0,99466.0,0.14075]
[1733637207421,0.08594133,99481.0,99470.0,0.140745]
[1733637207670,0.08594133,99481.0,99466.0,0.14075]
[1733637207895,0.08594133,99481.0,99469.0,0.140746]
[1733637208132,0.08594133,99481.0,99466.0,0.14075]
[1733637208398,0.08594133,99481.0,99474.0,0.0769]
[1733637209016,0.08594133,99481.0,99480.0,0.01015429]
[1733637209222,0.08594133,99481.0,99480.0,0.0008665]
[1733637210257,0.16784133,99481.0,99480.0,0.0008665]
[1733637210463,0.05,99470.0,99469.0,0.140747]
[1733637210677,0.05,99470.0,99469.0,0.217647]
[1733637211092,0.05,99470.0,99469.0,0.21556602]
[1733637211709,0.052,99470.0,99469.0,0.21556602]
[1733637211915,0.055,99470.0,99469.0,0.21556602]
[1733637212908,0.053,99470.0,99469.0,0.21556602]
[1733637213112,0.052,99470.0,99469.0,0.21556602]
[1733637213816,0.054,99470.0,99469.0,0.21556602]
[1733637214453,0.054,99470.0,99469.0,0.31559553]
[1733637217601,0.052,99470.0,99469.0,0.31559553]
[1733637218046,0.05,99470.0,99469.0,0.31559553]
[1733637222830,0.05,99470.0,99467.0,0.140748]
[1733637223058,0.05,99470.0,99466.0,0.0094939]
[1733637223263,0.05,99470.0,99464.0,0.140754]
[1733637223516,0.05,99470.0,99464.0,0.24078351]
[1733637223753,0.05,99470.0,99464.0,0.25010774]
[1733637224419,0.05,99462.0,99460.0,0.0008663]
[1733637225133,0.05,99463.0,99460.0,0.10089581]
[1733637225362,0.05,99467.0,99461.0,0.17612951]
[1733637225576,0.14451418,99478.0,99461.0,0.17612951]
[1733637225577,0.05,99470.0,99466.0,0.140751]
[1733637226014,0.05,99470.0,99466.0,0.281502]
[1733637226876,0.05,99470.0,99466.0,0.140751]
[1733637227560,0.05,99470.0,99466.0,0.281502]
[1733637228438,0.05,99471.0,99470.0,0.140745]
[1733637230424,0.05377918,99466.0,99465.0,0.09032671]
[1733637230638,0.00377918,99464.0,99460.0,0.0008663]
[1733637230860,0.00125681,99463.0,99460.0,0.0008663]
[1733637232397,0.05,99466.0,99461.0,0.140758]
[1733637232875,0.05,99468.0,99461.0,0.140758]
[1733637233289,0.05,99469.0,99465.0,0.140753]
[1733637233723,0.051,99466.0,99465.0,0.140753]
[1733637233937,0.001,99466.0,99465.0,0.140753]
[1733637234151,0.051,99466.0,99465.0,0.140753]
[1733637234367,0.001,99466.0,99465.0,0.140753]
[1733637234818,0.001,99466.0,99465.0,0.23107971]
[1733637235035,0.05,99469.0,99465.0,0.23107971]
[1733637235300,0.051,99469.0,99465.0,0.23107971]
[1733637235707,0.220949,99468.0,99465.0,0.09032671]
[1733637235924,0.14200568,99468.0,99460.0,0.0008663]
[1733637236141,0.001,99466.0,99460.0,0.0008663]
[1733637236613,0.140751,99467.0,99460.0,0.0008663]
[1733637236840,0.14200873,99466.0,99460.0,0.0008663]
[1733637238460,0.14400873,99466.0,99460.0,0.0008663]
[1733637239342,0.14600873,99466.0,99460.0,0.0008663]
[1733637239781,0.14200873,99466.0,99460.0,0.0008663]
[1733637240000,0.14300873,99466.0,99460.0,0.0008663]
[1733637240240,0.14400873,99466.0,99460.0,0.0008663]
[1733637241286,0.14300873,99466.0,99460.0,0.0008663]
[1733637241732,0.14400873,99466.0,99460.0,0.0008663]
[1733637242171,0.14300873,99466.0,99460.0,0.0008663]
[1733637242622,0.14400873,99466.0,99460.0,0.0008663]
[1733637242821,0.14300873,99466.0,99460.0,0.0008663]
[1733637243076,0.14200873,99466.0,99460.0,0.0008663]
[1733637243294,0.14400873,99466.0,99460.0,0.0008663]
[1733637243434,0.14300873,99466.0,99460.0,0.0008663]
[1733637243853,0.02058182,99461.0,99460.0,0.0008663]
[1733637247483,0.140752,99466.0,99460.0,0.0008663]
[1733637247723,0.00125674,99468.0,99460.0,0.0008663]
[1733637247952,0.00125674,99468.0,99461.0,0.140758]
[1733637248186,0.00125674,99468.0,99460.0,0.0008663]
[1733637248417,0.05,99469.0,99460.0,0.0008663]
[1733637248643,0.001,99466.0,99462.0,0.281513]
[1733637248869,0.001,99466.0,99462.0,0.23115805]
[1733637249082,0.05,99469.0,99462.0,0.09040205]
[1733637249298,0.001,99468.0,99461.0,0.09040205]
[1733637249942,0.00125668,99467.0,99460.0,0.0008663]
[1733637251051,0.00125668,99467.0,99461.0,0.00839215]
[1733637251739,0.001,99466.0,99461.0,0.00839215]
[1733637252195,0.00125674,99468.0,99461.0,0.00839215]
[1733637252653,0.001,99467.0,99461.0,0.00839215]
[1733637253132,0.00125674,99468.0,99461.0,0.00839215]
[1733637253373,0.00225674,99468.0,99461.0,0.00839215]
[1733637254084,0.05,99462.0,99461.0,0.00839215]
[1733637254310,0.05125681,99462.0,99461.0,0.00839215]
[1733637254761,0.05125681,99462.0,99460.0,0.0008663]
[1733637254904,0.05125681,99461.0,99460.0,0.0008663]
[1733637256565,0.051,99461.0,99460.0,0.0008663]
[1733637256995,0.051,99461.0,99460.0,0.00923722]
[1733637257218,0.051,99461.0,99460.0,0.0008663]
[1733637257836,0.051,99461.0,99460.0,0.00923722]
[1733637258091,0.051,99461.0,99460.0,0.0008663]
[1733637258474,0.05,99461.0,99460.0,0.0008663]
[1733637258668,0.051,99461.0,99460.0,0.0008663]
[1733637258892,0.051,99461.0,99460.0,0.00923703]
[1733637259129,0.05,99461.0,99460.0,0.00923703]
[1733637260010,0.05,99465.0,99460.0,0.00923703]
[1733637260231,0.05,99461.0,99460.0,0.00923703]
[1733637260460,0.05,99461.0,99460.0,0.01023703]
[1733637260733,0.05,99461.0,99460.0,0.00923703]
[1733637260952,0.05,99461.0,99460.0,0.01123703]
[1733637262674,0.05,99462.0,99461.0,0.140758]
[1733637262906,0.05,99462.0,99461.0,0.14912731]
[1733637263631,0.05,99466.0,99461.0,0.00836931]
[1733637264077,0.05,99466.0,99463.0,0.140755]
[1733637264288,0.05,99466.0,99465.0,0.140753]
[1733637264501,0.05,99466.0,99465.0,0.14911664]
[1733637265147,0.05,99466.0,99465.0,0.28986964]
[1733637265787,0.051,99466.0,99465.0,0.28986964]
[1733637266246,0.05,99466.0,99465.0,0.28986964]
[1733637266887,0.051,99466.0,99465.0,0.28986964]
[1733637270825,0.001,99466.0,99465.0,0.28986964]
[1733637271666,0.05,99469.0,99465.0,0.28986964]
[1733637272487,0.05,99469.0,99465.0,0.29086964]
[1733637272695,0.05,99469.0,99465.0,0.28986964]
[1733637272902,0.051,99469.0,99467.0,0.14075]
[1733637273329,0.051,99469.0,99468.0,0.00835552]
[1733637274620,0.05,99469.0,99468.0,0.00835552]
[1733637275194,0.051,99469.0,99468.0,0.00835552]
[1733637275608,0.31682618,99469.0,99468.0,0.00835552]
[1733637275777,0.41685569,99469.0,99468.0,0.00835552]
[1733637276076,0.190758,99461.0,99460.0,0.0008663]
[1733637276290,0.27149411,99461.0,99460.0,0.0008663]
[1733637276498,0.27023718,99461.0,99460.0,0.0008663]
[1733637277741,0.27423718,99461.0,99460.0,0.0008663]
[1733637278989,0.27623718,99461.0,99460.0,0.0008663]
[1733637279191,0.27223718,99461.0,99460.0,0.0008663]
[1733637279399,0.27623718,99461.0,99460.0,0.0008663]
[1733637279631,0.29260117,99461.0,99460.0,0.0008663]
[1733637279854,0.27223718,99461.0,99460.0,0.0008663]
[1733637280072,0.13547918,99461.0,99460.0,0.0008663]
[1733637280300,0.13673612,99461.0,99460.0,0.0008663]
[1733637280746,0.13073612,99461.0,99460.0,0.0008663]
[1733637281004,0.13373612,99461.0,99460.0,0.0008663]
[1733637281215,0.13573612,99461.0,99460.0,0.0008663]
[1733637281701,0.13247918,99461.0,99460.0,0.0008663]
[1733637281912,0.13447918,99461.0,99460.0,0.0008663]
[1733637282373,0.052,99461.0,99460.0,0.0008663]
[1733637282598,0.05677918,99461.0,99460.0,0.0008663]
[1733637282821,0.05577918,99461.0,99460.0,0.0008663]
[1733637283223,0.05877918,99461.0,99460.0,0.0008663]
[1733637284105,0.05677918,99461.0,99460.0,0.0008663]
[1733637284317,0.05877918,99461.0,99460.0,0.0008663]
[1733637286398,0.055,99461.0,99460.0,0.0008663]
[1733637286799,0.005,99461.0,99460.0,0.0008663]
[1733637287032,0.005,99461.0,99460.0,0.09125076]
[1733637287182,0.005,99461.0,99460.0,0.19939581]
[1733637287624,0.003,99461.0,99460.0,0.19939581]
[1733637287844,0.005,99461.0,99460.0,0.19939581]
[1733637288285,0.05,99468.0,99460.0,0.19939581]
[1733637288543,0.05,99468.0,99466.0,0.09036143]
[1733637288746,0.05,99468.0,99467.0,0.10002951]
[1733637289156,0.05,99468.0,99467.0,0.24077951]
[1733637290007,0.05,99468.0,99467.0,0.24177951]
[1733637290376,0.051,99468.0,99467.0,0.24177951]
[1733637290806,0.05,99468.0,99467.0,0.24177951]
[1733637292878,0.0017326,99470.0,99467.0,0.38252851]
[1733637293094,0.0017326,99470.0,99469.0,0.140747]
[1733637293294,0.0017326,99470.0,99469.0,0.24077651]
[1733637293733,0.0017326,99470.0,99469.0,0.28807651]
[1733637293956,0.0027326,99470.0,99469.0,0.4235829]
[1733637294376,0.0027326,99470.0,99469.0,0.28807651]
[1733637294594,0.0017326,99470.0,99469.0,0.42352378]
[1733637294813,0.0027326,99470.0,99469.0,0.42352378]
[1733637295473,0.0027326,99470.0,99469.0,0.28807651]
[1733637296812,0.0017326,99470.0,99469.0,0.28807651]
[1733637297020,0.0027326,99470.0,99469.0,0.28807651]
[1733637297482,0.0027326,99470.0,99469.0,0.37833974]
[1733637298125,0.0027326,99470.0,99469.0,0.28807651]
[1733637298542,0.0027326,99470.0,99469.0,0.3783324]
[1733637299005,0.0037326,99470.0,99469.0,0.3803324]
[1733637299410,0.0027326,99470.0,99469.0,0.3803324]
[1733637299721,0.0027326,99470.0,99469.0,0.29007651]
[1733637300417,0.0027326,99470.0,99469.0,0.24277651]
[1733637303235,0.0027326,99470.0,99469.0,0.002]
[1733637305219,0.00398929,99470.0,99469.0,0.002]
[1733637305442,0.00776847,99470.0,99469.0,0.002]
[1733637305885,0.00676847,99470.0,99462.0,0.140756]
[1733637306312,0.00676847,99470.0,99469.0,0.002]
[1733637307386,0.00676846,99470.0,99469.0,0.002]
[1733637307820,0.00676846,99470.0,99460.0,0.0008663]
[1733637308044,0.00676846,99470.0,99462.0,0.002]
[1733637308266,0.00377918,99467.0,99460.0,0.0008663]
[1733637308700,0.220851,99466.0,99460.0,0.0008663]
[1733637309362,0.220851,99466.0,99462.0,0.002]
[1733637309575,0.220851,99466.0,99460.0,0.0008663]
[1733637309790,0.140754,99464.0,99460.0,0.0008663]
[1733637310259,0.00503591,99465.0,99460.0,0.0008663]
[1733637310482,0.140754,99464.0,99460.0,0.0008663]
[1733637311263,0.140754,99464.0,99460.0,0.0028663]
[1733637311468,0.05377918,99461.0,99460.0,0.0008663]
[1733637311897,0.05377918,99461.0,99460.0,0.0028663]
[1733637312564,0.055036,99461.0,99460.0,0.0008663]
[1733637313005,0.056036,99461.0,99460.0,0.0028663]
[1733637313212,0.056036,99461.0,99460.0,0.0008663]
[1733637314502,0.056036,99461.0,99460.0,0.0028663]
[1733637324843,0.055036,99461.0,99460.0,0.0008663]
[1733637325477,0.055036,99461.0,99460.0,0.0018663]
[1733637331090,0.055036,99461.0,99460.0,0.00058882]
[1733637332414,0.05377918,99461.0,99460.0,0.00058882]
[1733637333117,0.05,99461.0,99460.0,0.14134882]
[1733637333344,0.05,99462.0,99460.0,0.14134882]
[1733637333553,0.05,99461.0,99460.0,0.14134882]
[1733637334398,0.05,99461.0,99460.0,0.14076]
[1733637334649,0.05,99461.0,99460.0,0.14176]
[1733637334869,0.05,99461.0,99458.0,0.140762]
[1733637335338,0.05,99461.0,99460.0,0.001]
[1733637335989,0.05,99461.0,99458.0,0.140762]
[1733637336202,0.05,99461.0,99460.0,0.14076]
[1733637337702,0.00377918,99467.0,99460.0,0.14076]
[1733637337703,0.05,99462.0,99460.0,0.14076]
[1733637337915,0.05,99461.0,99460.0,0.14176]
[1733637338568,0.05,99462.0,99460.0,0.14176]
[1733637338780,0.05,99462.0,99460.0,0.14076]
[1733637339710,0.0017326,99470.0,99469.0,0.140747]
[1733637339919,0.0017326,99470.0,99469.0,0.24077651]
[1733637340579,0.0017326,99470.0,99469.0,0.26377651]
[1733637340793,0.0017326,99470.0,99469.0,0.34457651]
[1733637341913,0.0017326,99470.0,99469.0,0.34657651]
[1733637342385,0.0017326,99470.0,99469.0,0.34457651]
[1733637342846,0.0017326,99470.0,99469.0,0.35280872]
[1733637343543,0.0017326,99470.0,99469.0,0.50280872]
[1733637343760,0.0017326,99470.0,99469.0,0.53276378]
[1733637343979,0.0017326,99470.0,99469.0,0.75631319]
[1733637344204,0.0017326,99470.0,99469.0,0.53376378]
[1733637344430,0.0017326,99470.0,99469.0,0.53076378]
[1733637344662,0.0017326,99470.0,99469.0,0.58671582]
[1733637344893,0.0017326,99470.0,99469.0,0.64011582]
[1733637344894,0.0027326,99470.0,99469.0,0.64011582]
[1733637345121,0.0017326,99470.0,99469.0,0.63611582]
[1733637345359,0.0027326,99470.0,99469.0,0.64011582]
[1733637345783,0.0017326,99470.0,99469.0,0.63611582]
[1733637345999,0.0017326,99470.0,99469.0,0.90677511]
[1733637346241,0.0017326,99470.0,99469.0,0.63611582]
[1733637347151,0.0027326,99470.0,99469.0,0.63911582]
[1733637347379,0.0037326,99470.0,99469.0,0.63911582]
[1733637347607,6e-07,99470.0,99469.0,0.63911582]
[1733637347820,0.00010961,99481.0,99480.0,0.49015182]
[1733637348046,0.00010961,99481.0,99480.0,0.77037263]
[1733637348238,0.00010961,99481.0,99480.0,0.77647143]
[1733637348366,0.00010961,99481.0,99480.0,0.59635542]
[1733637348592,0.00010961,99481.0,99480.0,0.82159455]
[1733637349233,0.00010961,99481.0,99480.0,0.59635542]
[1733637349921,0.00010961,99481.0,99480.0,0.82159455]
[1733637350145,0.00010961,99481.0,99480.0,0.82359455]
[1733637350283,0.00010961,99481.0,99480.0,0.78808261]
[1733637350499,6.1e-07,99481.0,99480.0,0.78808261]
[1733637350715,6.1e-07,99481.0,99480.0,0.61212096]
[1733637350975,0.001732,99500.0,99489.0,0.20993982]
[1733637351178,0.001732,99500.0,99489.0,0.68067903]
[1733637351815,0.001732,99500.0,99489.0,0.68682721]
[1733637352028,0.001732,99500.0,99489.0,0.59689172]
[1733637352300,0.0027326,99490.0,99489.0,0.60589172]
[1733637353791,0.0027326,99490.0,99489.0,0.60989172]
[1733637357093,6e-07,99490.0,99489.0,0.60989172]
[1733637357324,0.001732,99500.0,99499.0,0.26952482]
[1733637357529,0.001732,99500.0,99499.0,0.54255433]
[1733637357747,0.001732,99500.0,99499.0,0.54868543]
[1733637358381,0.002732,99500.0,99499.0,0.55768543]
[1733637359259,1e-06,99500.0,99499.0,0.60728543]
[1733637359900,1e-06,99500.0,99499.0,0.61228543]
[1733637360741,1e-06,99500.0,99499.0,0.71798543]
[1733637360953,1e-06,99500.0,99499.0,0.72779072]
[1733637361156,1e-06,99500.0,99499.0,0.74817664]
[1733637361628,0.0017326,99510.0,99509.0,0.41951082]
[1733637361837,0.0017326,99510.0,99509.0,0.54254033]
[1733637362045,0.0017326,99510.0,99509.0,0.5486417]
[1733637362497,0.0017326,99510.0,99509.0,0.5982417]
[1733637362712,6e-07,99510.0,99509.0,0.5982417]
[1733637362923,6e-07,99510.0,99509.0,0.7039417]
[1733637363344,6e-07,99510.0,99509.0,0.7069417]
[1733637363552,6e-07,99510.0,99509.0,0.7139417]
[1733637364173,6e-07,99510.0,99509.0,0.7109417]
[1733637364381,6e-07,99510.0,99509.0,0.7079417]
[1733637364605,6e-07,99510.0,99509.0,0.7169417]
[1733637365907,6e-07,99510.0,99509.0,0.7129417]
[1733637366186,0.0010006,99510.0,99509.0,0.7199417]
[1733637366564,0.0010006,99510.0,99509.0,0.62366975]
[1733637366821,0.0010006,99510.0,99509.0,0.42224893]
[1733637367801,6e-07,99510.0,99509.0,0.41524893]
[1733637368021,6e-07,99510.0,99509.0,0.40624893]
[1733637368248,6e-07,99510.0,99509.0,0.43824893]
[1733637368476,6e-07,99510.0,99509.0,0.42924893]
[1733637368930,6e-07,99510.0,99509.0,0.43824893]
[1733637369166,6e-07,99510.0,99509.0,0.44224893]
[1733637369628,6e-07,99510.0,99509.0,0.43824893]
[1733637370061,6e-07,99510.0,99509.0,0.44224893]
[1733637373231,6e-07,99510.0,99509.0,0.48846975]
[1733637373451,6e-07,99510.0,99509.0,0.56746975]
[1733637374569,6e-07,99510.0,99509.0,0.55846975]
[1733637374994,6e-07,99510.0,99509.0,0.56746975]
[1733637375233,6e-07,99510.0,99509.0,0.55846975]
[1733637375446,6e-07,99510.0,99509.0,0.56746975]
[1733637375674,6e-07,99510.0,99509.0,0.56346975]
[1733637376094,6e-07,99510.0,99509.0,0.56746975]
[1733637376547,6e-07,99510.0,99509.0,0.56346975]
[1733637377009,6e-07,99510.0,99509.0,0.56946975]
[1733637377251,6e-07,99510.0,99509.0,0.56046975]
[1733637377480,6e-07,99510.0,99509.0,0.56946975]
[1733637377705,6e-07,99510.0,99509.0,0.56046975]
[1733637378181,6e-07,99510.0,99509.0,0.56946975]
[1733637379459,6e-07,99510.0,99509.0,0.61936975]
[1733637379677,0.0017322,99530.0,99523.0,0.04622082]
[1733637379897,0.0017322,99530.0,99529.0,0.313662]
[1733637380117,0.0017322,99530.0,99529.0,0.41369151]
[1733637380990,0.00190532,99530.0,99529.0,0.41369151]
[1733637381438,0.00190532,99530.0,99529.0,0.41969151]
[1733637383697,0.00190532,99530.0,99529.0,0.42774706]
[1733637384390,0.00190532,99530.0,99529.0,0.47396788]
[1733637384607,0.00190532,99530.0,99529.0,0.48366481]
[1733637385593,0.00190532,99530.0,99529.0,0.51358693]
[1733637386898,3.2e-07,99530.0,99529.0,0.51358693]
[1733637388160,3.2e-07,99530.0,99529.0,0.50758693]
[1733637388392,3.2e-07,99530.0,99529.0,0.59758693]
[1733637388970,3.2e-07,99530.0,99529.0,0.59558693]
[1733637389203,3.2e-07,99530.0,99529.0,0.72326585]
[1733637389426,3.2e-07,99530.0,99529.0,0.69428693]
[1733637389602,3.2e-07,99530.0,99529.0,0.70128693]
[1733637389814,0.0009902,99549.0,99548.0,0.140635]
[1733637390019,0.0009902,99549.0,99548.0,0.41366451]
[1733637390227,0.1214,99561.0,99549.0,0.173]
[1733637390441,0.1214,99561.0,99549.0,0.27302951]
[1733637390702,0.1214,99561.0,99549.0,0.27905372]
[1733637391699,0.1214,99561.0,99549.0,0.28405372]
[1733637392953,0.1214,99561.0,99549.0,0.28505372]
[1733637396803,0.1214,99561.0,99549.0,0.29496772]
[1733637399797,0.0009899,99568.0,99549.0,0.29496772]
[1733637399798,0.0009899,99568.0,99560.0,0.173]
[1733637400062,0.001733,99580.0,99567.0,0.27302951]
[1733637400277,0.05,99587.0,99567.0,0.27302951]
[1733637400278,0.05,99587.0,99586.0,0.023]
[1733637400494,0.05,99588.0,99587.0,0.14058]
[1733637400725,0.05,99588.0,99587.0,0.24060951]
[1733637401163,0.05017312,99588.0,99587.0,0.24060951]
[1733637401811,0.05017312,99588.0,99587.0,0.24360951]
[1733637402248,0.05017312,99588.0,99587.0,0.24060951]
[1733637402478,0.05017312,99588.0,99587.0,0.24360951]
[1733637402706,0.12987312,99588.0,99587.0,0.24360951]
[1733637403146,0.12987312,99588.0,99587.0,0.25307333]
[1733637403875,0.12987312,99588.0,99587.0,0.25903971]
[1733637405152,0.05017312,99588.0,99587.0,0.25903971]
[1733637405380,0.00017312,99588.0,99587.0,0.25903971]
[1733637406473,0.00017312,99588.0,99587.0,0.28203971]
[1733637409362,0.00017312,99588.0,99587.0,0.28103971]
[1733637409830,0.00017312,99588.0,99587.0,0.27903971]
[1733637410720,0.00017312,99588.0,99587.0,0.28503971]
[1733637411170,0.00017312,99588.0,99587.0,0.28703971]
[1733637417240,0.00017312,99588.0,99587.0,0.28503971]
[1733637417463,0.00017312,99588.0,99587.0,0.27903971]
[1733637417686,0.00017312,99588.0,99587.0,0.28603971]
[1733637418126,0.00017312,99588.0,99587.0,0.28503971]
[1733637418332,0.00017312,99588.0,99587.0,0.28703971]
[1733637422798,0.00017312,99588.0,99587.0,0.43703971]
[1733637427861,0.00017312,99588.0,99587.0,0.43503971]
[1733637428093,0.00017312,99588.0,99587.0,0.42903971]
[1733637428307,0.00017312,99588.0,99587.0,0.43903971]
[1733637429876,0.00017312,99588.0,99587.0,0.43703971]
[1733637430096,0.00017312,99588.0,99587.0,0.55672849]
[1733637430298,0.00017312,99588.0,99587.0,0.46894643]
[1733637430422,1.2e-07,99590.0,99589.0,0.140577]
[1733637430643,1.2e-07,99590.0,99589.0,0.44943987]
[1733637431271,1.2e-07,99590.0,99589.0,0.63048784]
[1733637431898,1.2e-07,99590.0,99589.0,0.63748784]
[1733637433108,1.2e-07,99590.0,99589.0,0.63948784]
[1733637433327,1.2e-07,99590.0,99589.0,0.50466069]
[1733637436278,1.2e-07,99590.0,99589.0,0.68443022]
[1733637438020,1.2e-07,99590.0,99589.0,0.50466069]
[1733637438912,1.2e-07,99590.0,99589.0,0.43543987]
[1733637439154,1.2e-07,99590.0,99589.0,0.40553315]
[1733637440278,1.2e-07,99590.0,99589.0,0.42853315]
[1733637442263,1.2e-07,99590.0,99589.0,0.51847831]
[1733637442896,1.2e-07,99590.0,99589.0,0.42853315]
[1733637443556,1.2e-07,99590.0,99589.0,0.56344438]
[1733637444507,1.2e-07,99590.0,99589.0,0.42853315]
[1733637446437,1.2e-07,99590.0,99589.0,0.68384977]
[1733637448368,1.2e-07,99590.0,99589.0,0.45848828]
[1733637451402,1.2e-07,99590.0,99589.0,0.45849705]
[1733637452489,1.2e-07,99590.0,99589.0,0.42853315]
[1733637452707,1.2e-07,99590.0,99589.0,0.45849918]
[1733637462213,1.2e-07,99590.0,99589.0,0.68404085]
[1733637463218,1.2e-07,99590.0,99589.0,0.45849918]
[1733637463876,1.2e-07,99590.0,99589.0,0.68406243]
[1733637464111,1.2e-07,99590.0,99589.0,0.01492664]
[1733637464112,0.1773793,99590.0,99589.0,0.01492664]
[1733637464330,0.17863451,99590.0,99589.0,0.01492664]
[1733637464586,0.17863451,99590.0,99589.0,0.009]
[1733637465238,0.0768,99588.0,99587.0,0.00017312]
[1733637465444,0.07805523,99588.0,99587.0,0.00017312]
[1733637465893,0.21863423,99588.0,99587.0,0.00610409]
[1733637466106,0.217379,99588.0,99587.0,0.00017312]
[1733637466574,0.218379,99588.0,99587.0,0.00017312]
[1733637467237,0.22215818,99588.0,99587.0,0.00017312]
[1733637467676,0.27215818,99588.0,99587.0,0.00017312]
[1733637468560,0.31895818,99588.0,99587.0,0.00017312]
[1733637484208,0.31795818,99588.0,99587.0,0.00017312]
[1733637484496,0.32095818,99588.0,99587.0,0.00017312]
[1733637487604,0.18037918,99588.0,99587.0,0.00017312]
[1733637487816,0.18163447,99588.0,99587.0,0.00017312]
[1733637488212,0.13483447,99588.0,99587.0,0.00017312]
[1733637490224,0.05677918,99588.0,99587.0,0.00017312]